bitfinex/quotes_ETHUSD_20220105
["timestamp","ask_amount","ask_price","bid_price","bid_amount"]
[1641360414486,0.00468294,3807.1,3806.9,0.96406567]
[1641360416725,0.00468294,3807.1,3806.9,0.30728567]
[1641360417127,0.00468294,3807.1,3806.9,0.00728567]
[1641360417427,2.96540067,3807.0,3806.9,0.00728567]
[1641360419589,0.00468294,3807.1,3806.9,0.00728567]
[1641360420782,2.96538718,3807.0,3806.9,0.00728567]
[1641360426733,0.00468294,3807.1,3806.9,0.00728567]
[1641360429289,2.96539673,3807.0,3806.9,0.00728567]
[1641360429487,4.97751335,3807.0,3806.9,0.00728567]
[1641360429787,2.01211662,3807.0,3806.9,0.00728567]
[1641360431228,4.97752598,3807.0,3806.9,0.00728567]
[1641360431627,2.01211662,3807.0,3806.9,0.00728567]
[1641360432432,4.97752598,3807.0,3806.9,0.00728567]
[1641360435271,2.96540936,3807.0,3806.9,0.00728567]
[1641360435475,4.94898536,3807.0,3806.9,0.00728567]
[1641360436575,4.96344455,3807.0,3806.9,0.00728567]
[1641360436974,2.96540936,3807.0,3806.9,0.00728567]
[1641360437675,4.8747592,3807.0,3806.9,0.00728567]
[1641360437975,2.97054248,3807.1,3806.9,0.00728567]
[1641360438431,1.89182398,3807.0,3806.9,0.00728567]
[1641360438632,2.96540936,3807.0,3806.9,0.00728567]
[1641360439837,4.89205461,3807.0,3806.9,0.00728567]
[1641360442678,4.89205461,3807.0,3806.8,7.134e-05]
[1641360442679,3.65,3806.9,3806.8,7.134e-05]
[1641360442878,11.3667164,3806.9,3805.6,0.73589356]
[1641360443280,11.3667164,3806.9,3805.7,0.00682108]
[1641360443281,11.37697296,3806.9,3805.7,0.00682108]
[1641360443578,1.3140156,3806.6,3805.7,0.00682108]
[1641360443781,0.65702,3806.3,3805.7,0.00682108]
[1641360443982,0.6570124,3806.1,3805.7,0.00682108]
[1641360444179,1.98058256,3806.0,3805.7,0.00682108]
[1641360445581,0.6570124,3806.1,3805.7,0.00682108]
[1641360445826,1.90389006,3806.0,3805.7,0.00682108]
[1641360447430,0.6570124,3806.1,3805.7,0.00682108]
[1641360447632,2.02401521,3806.2,3805.7,0.00682108]
[1641360448032,2.0048348,3806.4,3805.7,0.00682108]
[1641360448232,2.96645984,3806.1,3805.7,0.00682108]
[1641360448432,1.90241421,3806.0,3805.7,0.00682108]
[1641360448832,0.01025925,3806.0,3805.7,0.00682108]
[1641360450778,0.01025925,3806.0,3805.8,0.65696]
[1641360450978,0.01025925,3806.0,3805.8,0.95696]
[1641360451178,0.01025925,3806.0,3805.9,0.00568423]
[1641360451981,0.01025925,3806.0,3805.9,0.01146568]
[1641360478431,0.01025925,3806.0,3805.9,2.83479725]
[1641360478631,0.01025925,3806.0,3805.9,3.83479725]
[1641360478831,0.00516324,3806.1,3806.0,3.7]
[1641360479032,5.2531,3806.9,3806.0,5.73958983]
[1641360479231,5.2531,3806.9,3806.6,0.65665]
[1641360479432,5.2531,3806.9,3806.6,1.03565]
[1641360479680,5.2531,3806.9,3806.7,1.74366542]
[1641360480582,5.2531,3806.9,3806.8,0.65668]
[1641360480982,5.2531,3806.9,3806.8,0.95668]
[1641360483088,8.21869895,3806.9,3806.8,0.95668]
[1641360483931,8.21869895,3806.9,3806.8,1.25668]
[1641360484133,5.2531,3806.9,3806.8,1.25668]
[1641360484734,5.2531,3806.9,3806.8,0.95668]
[1641360485933,5.2531,3806.9,3806.8,0.65668]
[1641360486135,5.2531,3806.9,3806.8,0.95668]
[1641360487583,5.2531,3806.9,3806.8,0.65668]
[1641360488782,5.2531,3806.9,3806.7,0.00113685]
[1641360488981,5.25920155,3806.9,3806.7,0.00113685]
[1641360490824,5.25920155,3806.9,3806.7,0.30113685]
[1641360494980,5.25920155,3806.9,3806.8,0.00568374]
[1641360500534,5.26945822,3806.9,3806.8,0.00568374]
[1641360506132,7.24171059,3806.9,3806.8,0.00568374]
[1641360506437,7.24962503,3806.9,3806.8,0.00568374]
[1641360508039,10.21518146,3806.9,3806.8,0.00568374]
[1641360511691,8.23501465,3806.9,3806.8,0.00568374]
[1641360514641,9.42555508,3806.9,3806.8,0.00568374]
[1641360514843,8.23501465,3806.9,3806.8,0.00568374]
[1641360518980,9.56580302,3806.9,3806.8,0.00568374]
[1641360520182,8.23501465,3806.9,3806.8,0.00568374]
[1641360520584,9.56580302,3806.9,3806.8,0.00568374]
[1641360523038,8.89196465,3806.9,3806.8,0.00568374]
[1641360523438,10.22275302,3806.9,3806.8,0.00568374]
[1641360523640,9.56580302,3806.9,3806.8,0.00568374]
[1641360525687,8.23501465,3806.9,3806.8,0.00568374]
[1641360546644,8.23841105,3806.9,3806.8,0.00568374]
[1641360553437,9.56919942,3806.9,3806.8,0.00568374]
[1641360554238,8.23841105,3806.9,3806.8,0.00568374]
[1641360555093,8.24018385,3806.9,3806.8,0.00568374]
[1641360572685,9.57097222,3806.9,3806.8,0.00568374]
[1641360573341,10.56547222,3806.9,3806.8,0.00568374]
[1641360573541,12.24447222,3806.9,3806.8,0.00568374]
[1641360573743,12.27710526,3806.9,3806.8,0.00568374]
[1641360574140,1.9713182,3806.3,3805.1,0.29660628]
[1641360574341,0.65711,3806.0,3805.1,0.29660628]
[1641360574542,0.65711,3806.0,3805.7,0.00682108]
[1641360574543,0.65714,3805.8,3805.7,0.00682108]
[1641360574743,8.1666369,3805.8,3805.7,0.00682108]
[1641360575346,7.5094969,3805.8,3805.7,0.00682108]
[1641360576550,5.2531,3805.8,3805.7,0.00682108]
[1641360576749,8.21865643,3805.8,3805.7,0.00682108]
[1641360578994,12.66833386,3805.8,3805.7,0.00682108]
[1641360579995,8.21865643,3805.8,3805.7,0.00682108]
[1641360580834,8.22656442,3805.8,3805.7,0.00682108]
[1641360583442,8.22656442,3805.8,3805.6,0.71970422]
[1641360583640,0.6570329,3805.7,3805.6,0.71970422]
[1641360583841,5.9101329,3805.7,3805.6,0.71970422]
[1641360585189,5.2531,3805.7,3805.6,2.66167324]
[1641360585388,5.2531,3805.7,3805.6,2.96167324]
[1641360585587,5.2531,3805.7,3805.6,3.26167324]
[1641360586393,5.2531,3805.7,3805.6,1.31970422]
[1641360586792,5.2531,3805.7,3805.6,0.71970422]
[1641360586996,5.2531,3805.7,3805.6,1.01970422]
[1641360587194,5.2531,3805.7,3805.6,1.01405438]
[1641360590042,5.2531,3805.7,3805.6,2.79993601]
[1641360590644,5.2531,3805.7,3805.6,1.01923881]
[1641360592095,5.9100563,3805.7,3805.6,0.72488865]
[1641360593000,5.92371901,3805.7,3805.6,0.72488865]
[1641360596635,5.92371901,3805.7,3805.6,0.72211954]
[1641360596840,5.26676271,3805.7,3805.6,0.72211954]
[1641360597041,5.26676271,3805.7,3805.6,1.02211954]
[1641360597639,5.26676271,3805.7,3805.6,0.72211954]
[1641360597839,5.37676271,3805.7,3805.6,0.72211954]
[1641360598440,5.37676271,3805.7,3805.6,1.02211954]
[1641360600285,5.37676271,3805.7,3805.6,3.75192964]
[1641360600486,5.37676271,3805.7,3805.6,4.67312964]
[1641360600687,0.12242271,3805.7,3805.6,4.67312964]
[1641360600886,0.12242271,3805.7,3805.6,4.97312964]
[1641360601088,0.12242271,3805.7,3805.6,4.67312964]
[1641360601692,0.12242271,3805.7,3805.6,4.54682964]
[1641360603750,0.12242271,3805.7,3805.6,2.49601954]
[1641360603948,0.12242271,3805.7,3805.6,2.70111954]
[1641360604148,0.12242271,3805.7,3805.6,1.70111954]
[1641360605852,0.12242271,3805.7,3805.6,1.69476798]
[1641360608592,0.12242271,3805.7,3805.6,2.69476798]
[1641360609591,0.21075511,3805.7,3805.6,2.69476798]
[1641360611841,0.21075511,3805.7,3805.6,1.69476798]
[1641360612242,0.21075511,3805.7,3805.6,1.10111954]
[1641360612844,0.21075511,3805.7,3805.6,1.40111954]
[1641360614145,0.21075511,3805.7,3805.6,1.10111954]
[1641360617592,0.21075511,3805.7,3805.6,0.72211954]
[1641360619145,2.21462281,3805.7,3805.6,0.72211954]
[1641360621141,2.12621152,3805.7,3805.6,0.72211954]
[1641360621343,0.21075511,3805.7,3805.6,0.72211954]
[1641360621543,2.15560834,3805.7,3805.6,0.72211954]
[1641360621943,0.27880216,3805.7,3805.6,0.72211954]
[1641360623496,2.21130493,3805.7,3805.6,0.72211954]
[1641360623693,0.27880216,3805.7,3805.6,0.72211954]
[1641360627342,3.2451552,3805.7,3805.6,0.72211954]
[1641360627745,0.27880216,3805.7,3805.6,0.72211954]
[1641360635640,0.27880216,3805.7,3805.6,0.71927949]
[1641360642560,0.27880216,3805.7,3805.6,1.81750522]
[1641360646798,0.27880216,3805.7,3805.6,2.11750522]
[1641360647802,0.27880216,3805.7,3805.6,1.81750522]
[1641360652495,0.27880216,3805.7,3805.6,2.11750522]
[1641360653094,0.27880216,3805.7,3805.6,3.94138055]
[1641360655975,0.27880216,3805.7,3805.6,3.92984255]
[1641360657974,0.27880216,3805.7,3805.6,2.11750522]
[1641360659273,0.27880216,3805.7,3805.6,3.93184125]
[1641360659474,0.27880216,3805.7,3805.6,5.31084125]
[1641360663946,0.27880216,3805.7,3805.6,4.31084125]
[1641360664945,0.27880216,3805.7,3805.6,5.31084125]
[1641360665751,0.27880216,3805.7,3805.6,4.31084125]
[1641360666152,0.27880216,3805.7,3805.6,5.31084125]
[1641360668102,0.28393201,3805.7,3805.6,5.31084125]
[1641360669402,0.28393201,3805.7,3805.6,4.31084125]
[1641360669602,0.28393201,3805.7,3805.6,5.31084125]
[1641360671046,0.28393201,3805.7,3805.6,3.49650522]
[1641360672048,0.28393201,3805.7,3805.6,5.32194591]
[1641360672853,0.28393201,3805.7,3805.6,4.32194591]
[1641360675899,0.28393201,3805.7,3805.6,4.34025683]
[1641360676702,0.28393201,3805.7,3805.6,5.34025683]
[1641360678109,0.28393201,3805.7,3805.6,3.49650522]
[1641360680652,0.28393201,3805.7,3805.6,5.32818831]
[1641360681851,0.28393201,3805.7,3805.6,3.49650522]
[1641360682097,0.28393201,3805.7,3805.6,2.49650522]
[1641360686248,0.28393201,3805.7,3805.6,2.19650522]
[1641360686449,0.28393201,3805.7,3805.6,1.81750522]
[1641360687655,0.94090991,3805.7,3805.6,1.81750522]
[1641360687857,0.94090991,3805.7,3805.3,0.65702]
[1641360687858,2.98659371,3805.7,3805.3,0.65702]
[1641360688053,2.98659371,3805.7,3804.5,1.31417]
[1641360688054,2.24128341,3805.7,3804.5,1.31417]
[1641360688252,5.20750279,3805.7,3805.4,0.00170527]
[1641360688456,5.2555,3805.6,3805.4,0.00170527]
[1641360689252,1.3142688,3805.5,3804.8,0.00511581]
[1641360689457,4.28048818,3805.5,3804.8,0.00511581]
[1641360689897,4.28048818,3805.5,3804.5,0.00682108]
[1641360690197,2.09448725,3805.4,3804.9,1.23202577]
[1641360690398,5.06070663,3805.4,3804.9,1.23202577]
[1641360690600,5.06070663,3805.4,3805.0,0.00397897]
[1641360690801,0.6570819,3805.2,3805.0,0.00397897]
[1641360691001,2.57658505,3805.2,3805.0,0.00397897]
[1641360691200,0.6570819,3805.2,3805.0,0.00397897]
[1641360692004,5.2555,3805.3,3805.0,0.66103897]
[1641360692203,7.18417931,3805.3,3805.0,0.66103897]
[1641360692404,7.18417931,3805.3,3805.1,0.00341054]
[1641360692607,5.2555,3805.3,3805.1,0.00341054]
[1641360692804,2.96652367,3805.2,3805.0,0.00397897]
[1641360693206,5.2555,3805.3,3805.0,0.00397897]
[1641360693452,0.0883324,3805.1,3805.0,0.00397897]
[1641360694059,0.11164073,3805.1,3805.0,0.00397897]
[1641360695258,2.09823732,3805.1,3805.0,0.00397897]
[1641360695661,0.6571817,3805.0,3804.6,0.00625266]
[1641360695858,2.08028832,3804.9,3804.6,0.00625266]
[1641360696059,2.08028832,3804.9,3804.3,0.00795793]
[1641360696361,2.08028832,3804.9,3804.2,1.44398137]
[1641360696559,0.11164073,3805.1,3804.2,1.14398137]
[1641360696758,0.11164073,3805.1,3804.3,0.00795793]
[1641360696759,0.657206,3804.7,3804.3,0.00795793]
[1641360696959,1.93742778,3804.6,3804.3,0.00795793]
[1641360697403,1.3143633,3805.0,3804.3,0.00795793]
[1641360697404,2.10675013,3804.9,3804.3,0.00795793]
[1641360697807,0.6571908,3804.8,3804.3,0.66512793]
[1641360698006,2.9667635,3804.8,3804.3,0.66512793]
[1641360698202,2.9667635,3804.8,3804.4,0.00738951]
[1641360698802,0.0883324,3804.6,3804.4,1.13138609]
[1641360699008,0.0883324,3804.6,3804.5,0.6571]
[1641360699203,0.0883324,3804.6,3804.5,0.66392108]
[1641360699505,0.0883324,3804.6,3804.5,0.00682108]
[1641360699506,0.11164612,3804.6,3804.5,0.00682108]
[1641360699902,0.11164612,3804.6,3804.2,2.45823137]
[1641360699903,0.11164612,3804.6,3804.3,0.00795793]
[1641360700604,0.11164612,3804.6,3804.3,1.32227793]
[1641360700849,0.11164612,3804.6,3804.3,0.66511793]
[1641360701048,0.11164612,3804.6,3804.4,0.00738951]
[1641360701452,0.17403307,3804.6,3804.4,0.00738951]
[1641360701950,0.17403307,3804.6,3804.4,0.66451951]
[1641360702355,0.17403307,3804.6,3804.5,0.00682108]
[1641360702956,0.17403307,3804.6,3804.4,0.00738951]
[1641360703556,0.17403307,3804.6,3804.3,0.00795793]
[1641360703757,0.08570067,3804.6,3804.3,0.00795793]
[1641360703957,0.0883324,3804.4,3804.3,0.00795793]
[1641360705207,0.1116488,3804.4,3804.3,0.00795793]
[1641360706411,0.1116488,3804.4,3803.9,0.01023162]
[1641360707010,0.1116488,3804.4,3804.0,0.65723]
[1641360707212,0.1740675,3804.4,3804.0,0.65723]
[1641360707410,0.18734647,3804.4,3804.1,0.00909478]
[1641360707612,0.18734647,3804.4,3804.1,1.52146011]
[1641360707910,0.18734647,3804.4,3804.2,0.00852635]
[1641360708951,0.14318027,3804.4,3804.2,0.00852635]
[1641360709357,0.0441662,3804.3,3804.2,0.00852635]
[1641360709561,0.0883324,3804.3,3804.2,0.00852635]
[1641360712301,2.03957808,3804.3,3804.2,0.00852635]
[1641360712510,2.03957808,3804.3,3803.2,3.0765]
[1641360712511,2.03957808,3804.3,3804.1,0.00909478]
[1641360712708,5.2555,3804.2,3803.7,0.01136847]
[1641360712909,2.03625072,3804.1,3802.9,0.01591586]
[1641360713107,2.03625072,3804.1,3802.6,0.29660628]
[1641360713108,1.3150007,3803.7,3802.7,0.01705271]
[1641360713707,0.01331207,3803.6,3802.7,0.01705271]
[1641360714107,0.6574657,3803.2,3802.7,0.01705271]
[1641360714710,0.0441662,3803.0,3802.7,0.01705271]
[1641360714907,0.0883324,3803.0,3802.7,0.01705271]
[1641360715108,0.0883324,3803.0,3802.7,0.31705271]
[1641360715308,0.7458298,3803.0,3802.7,0.31705271]
[1641360715509,0.7458298,3803.0,3802.8,0.01648428]
[1641360716052,0.0883324,3803.0,3802.8,0.01648428]
[1641360716253,0.0883324,3803.0,3802.7,0.01705271]
[1641360716451,0.0883324,3803.0,3802.5,0.01818955]
[1641360716655,0.0883324,3803.0,3802.6,0.65744]
[1641360717053,0.0883324,3803.0,3802.7,0.01705271]
[1641360717260,0.0883324,3803.0,3802.7,0.67441271]
[1641360717659,0.0883324,3803.0,3802.8,0.01648428]
[1641360717858,0.0883324,3803.0,3802.8,0.67384428]
[1641360718258,0.0883324,3803.0,3802.9,2.36591586]
[1641360718457,0.0883324,3803.0,3802.9,0.61591586]
[1641360718659,0.0883324,3803.0,3802.9,0.01591586]
[1641360719059,0.15085109,3803.0,3802.9,0.01591586]
[1641360720202,0.15085109,3803.0,3802.9,0.31591586]
[1641360720401,0.15085109,3803.0,3802.9,0.69491586]
[1641360720602,0.12425109,3803.0,3802.9,0.69491586]
[1641360720806,0.01203627,3804.0,3803.1,0.0891]
[1641360721005,0.01203627,3804.0,3803.7,0.65715]
[1641360721208,5.2555,3804.2,3803.9,4.86251474]
[1641360721406,5.2555,3804.2,3804.0,1.22365197]
[1641360721605,5.2555,3804.2,3804.1,6.3024555]
[1641360721804,5.2555,3804.2,3804.1,1.96155028]
[1641360722005,5.2555,3804.2,3804.1,2.96155028]
[1641360723365,5.2555,3804.2,3804.1,5.03275683]
[1641360730865,5.28395044,3804.2,3804.1,5.03275683]
[1641360732264,5.28395044,3804.2,3804.1,5.03873074]
[1641360746055,1.2009,3805.2,3804.1,5.03873074]
[1641360746056,1.2009,3805.2,3804.2,4.85]
[1641360746257,10.8015,3805.6,3804.7,0.65694]
[1641360746455,7.0626,3805.6,3805.1,4.732]
[1641360746655,3.788,3806.3,3805.2,0.379]
[1641360746855,3.1643446,3806.2,3805.2,0.38184212]
[1641360747055,3.1643446,3806.2,3805.3,0.0022737]
[1641360747259,3.1643446,3806.2,3805.4,2.0792287]
[1641360747459,3.1643446,3806.2,3805.5,1.19665485]
[1641360747661,3.1643446,3806.2,3805.6,0.379]
[1641360748059,3.1643446,3806.2,3805.6,0.679]
[1641360748462,1.1364,3806.2,3805.6,0.679]
[1641360748863,1.1364,3806.2,3805.6,0.379]
[1641360749908,0.00503404,3805.8,3805.6,0.679]
[1641360752711,0.1498085,3805.7,3805.6,0.679]
[1641360753561,0.1498085,3805.7,3805.6,0.68480122]
[1641360756568,0.16401547,3805.7,3805.6,0.68480122]
[1641360756966,0.16401547,3805.7,3805.6,0.38480122]
[1641360760851,0.16401547,3805.7,3805.6,0.00580122]
[1641360767311,2.09669047,3805.7,3805.6,0.00580122]
[1641360767512,0.16401547,3805.7,3805.6,0.00580122]
[1641360769662,2.06521439,3805.7,3805.6,0.00580122]
[1641360770057,2.06521439,3805.7,3803.7,0.29660628]
[1641360770058,0.5,3805.5,3803.7,0.29660628]
[1641360770263,0.6572263,3804.7,3803.7,0.29660628]
[1641360770460,2.17319398,3804.6,3803.8,0.0096632]
[1641360770660,0.65722,3805.4,3803.8,0.0096632]
[1641360770661,2.52286656,3805.3,3804.3,0.65718]
[1641360770861,1.314304,3805.1,3804.5,0.65716]
[1641360771060,2.22561177,3805.0,3804.4,0.00625266]
[1641360771261,0.6572044,3804.8,3804.6,0.00511581]
[1641360771460,2.19974155,3805.1,3804.4,0.00625266]
[1641360771660,0.0398992,3805.4,3804.1,0.00795793]
[1641360771860,1.3143324,3805.1,3804.2,0.65719]
[1641360772105,2.13517783,3805.0,3804.1,0.66516793]
[1641360772312,0.0398992,3805.4,3804.3,0.00682108]
[1641360772512,0.0398992,3805.4,3804.4,1.31120796]
[1641360772709,2.96708387,3805.0,3804.4,1.31120796]
[1641360772911,2.01096976,3804.9,3804.5,0.00568423]
[1641360773312,3.32538296,3804.9,3804.2,0.0073895]
[1641360773511,0.6572218,3804.6,3804.2,0.0073895]
[1641360773712,2.16508342,3804.5,3804.2,0.0073895]
[1641360773913,2.42393542,3805.1,3804.2,0.0073895]
[1641360774114,5.2567,3805.0,3804.2,0.0073895]
[1641360774312,0.65723,3804.8,3804.1,1.1398196]
[1641360774514,0.6572166,3804.6,3804.1,1.1398196]
[1641360774715,0.6572166,3804.6,3804.2,0.0073895]
[1641360774916,0.6572166,3804.6,3804.3,0.0052723]
[1641360775114,2.9670929,3804.5,3804.3,0.0052723]
[1641360775413,2.9670929,3804.5,3804.4,0.00625266]
[1641360776957,2.9670929,3804.5,3804.4,0.66340266]
[1641360777163,2.9670929,3804.5,3804.4,2.31581405]
[1641360777361,3.0070011,3804.5,3804.4,2.31581405]
[1641360777961,3.0070011,3804.5,3804.4,1.04240266]
[1641360778362,0.0399082,3804.5,3804.4,1.04240266]
[1641360781508,0.0399082,3804.5,3804.4,0.00625266]
[1641360782510,0.05412968,3804.5,3804.4,0.00625266]
[1641360785260,0.05412968,3804.5,3804.4,0.01154743]
[1641360786459,1.97074579,3804.5,3804.4,0.01154743]
[1641360786660,1.97451131,3804.5,3804.4,0.01154743]
[1641360786860,1.97399666,3804.5,3804.4,0.01154743]
[1641360787110,0.05412968,3804.5,3804.4,0.01154743]
[1641360787913,0.05926118,3804.5,3804.4,0.01154743]
[1641360789914,4.19371676,3804.5,3804.4,0.01154743]
[1641360790114,1.99371676,3804.5,3804.4,0.01154743]
[1641360790313,7.25041676,3804.5,3804.4,0.01154743]
[1641360790716,7.30861676,3804.5,3804.4,0.01154743]
[1641360791953,7.25041676,3804.5,3804.4,0.01154743]
[1641360798011,10.21812922,3804.5,3804.4,0.01154743]
[1641360798453,10.87549922,3804.5,3804.4,0.01154743]
[1641360799453,10.21812922,3804.5,3804.4,0.01154743]
[1641360800458,11.54479683,3804.5,3804.4,0.01154743]
[1641360800862,10.21812922,3804.5,3804.4,0.01154743]
[1641360803721,10.87548922,3804.5,3804.4,0.01154743]
[1641360805322,10.87548922,3804.5,3804.4,0.00529477]
[1641360808366,4.75,3804.4,3803.1,0.10134796]
[1641360808569,1.3149337,3803.8,3803.1,0.0891]
[1641360808767,2.1587325,3803.7,3803.2,0.01307374]
[1641360809615,0.657471,3803.5,3803.2,0.01307374]
[1641360809805,2.5948957,3803.5,3803.2,0.01307374]
[1641360810206,0.657471,3803.5,3803.2,0.01307374]
[1641360810505,2.96771246,3803.4,3803.2,0.01307374]
[1641360813564,0.01936844,3803.3,3803.2,0.01307374]
[1641360814569,2.9870809,3803.3,3803.2,0.01307374]
[1641360814767,5.20891345,3803.3,3803.2,0.01307374]
[1641360814968,5.20891345,3803.3,3801.9,1.31505]
[1641360815173,0.6575868,3802.8,3801.9,1.31505]
[1641360815471,1.3151735,3802.9,3802.2,0.00568423]
[1641360815972,1.3151735,3802.9,3802.4,1.22437071]
[1641360816174,0.6575136,3802.7,3802.4,1.22437071]
[1641360816376,4.34031236,3803.2,3802.5,0.00397896]
[1641360816774,2.96771246,3802.8,3802.5,0.00397896]
[1641360817212,0.657497,3802.9,3802.5,0.00397896]
[1641360817410,2.96771246,3803.1,3802.5,0.00397896]
[1641360817610,2.96771246,3803.1,3802.6,0.00490826]
[1641360818010,2.96771246,3802.8,3802.7,0.00284212]
[1641360818412,1.3150948,3802.9,3802.7,0.00284212]
[1641360819311,0.01937518,3802.8,3802.7,0.00284212]
[1641360820957,0.0594193,3802.8,3802.7,0.00284212]
[1641360823064,3.02793188,3802.8,3802.7,0.00284212]
[1641360823463,0.0594193,3802.8,3802.7,0.00284212]
[1641360824268,3.02793188,3802.8,3802.7,0.00284212]
[1641360824707,0.0594193,3802.8,3802.7,0.00284212]
[1641360825409,3.02793188,3802.8,3802.7,0.00284212]
[1641360825809,2.19749931,3802.8,3802.7,0.00284212]
[1641360826207,10.42271189,3802.8,3802.7,0.00284212]
[1641360826607,8.28463188,3802.8,3802.7,0.00284212]
[1641360827013,8.29154045,3802.8,3802.7,0.00284212]
[1641360828656,8.05129702,3802.8,3802.7,0.00774442]
[1641360828855,8.05129702,3802.8,3802.7,0.0049023]
[1641360829057,8.05129702,3802.8,3802.7,0.00774442]
[1641360829259,8.05129702,3802.8,3802.7,0.66516442]
[1641360829660,8.05129702,3802.8,3802.7,0.65411462]
[1641360829859,8.05129702,3802.8,3802.7,1.03311462]
[1641360832411,8.05484702,3802.8,3802.7,1.03311462]
[1641360832809,8.08688213,3802.8,3802.7,1.03311462]
[1641360838770,8.08688213,3802.8,3802.7,0.379]
[1641360839470,8.08688213,3802.8,3802.7,0.3833576]
[1641360842925,8.08688213,3802.8,3802.7,0.0043576]
[1641360845361,8.09714971,3802.8,3802.7,0.0043576]
[1641360845759,8.07804107,3802.8,3802.7,0.0043576]
[1641360848822,5.10952849,3802.8,3802.7,0.0043576]
[1641360849622,5.12728858,3802.8,3802.7,0.0043576]
[1641360850865,8.10049254,3802.8,3802.7,0.0043576]
[1641360852064,5.13184298,3802.8,3802.7,0.0043576]
[1641360858115,5.13352212,3802.8,3802.7,0.0043576]
[1641360862508,8.10188528,3802.8,3802.7,0.0043576]
[1641360865213,5.13352212,3802.8,3802.7,0.0043576]
[1641360865890,5.13352212,3802.8,3802.7,1.40435759]
[1641360866685,5.13352212,3802.8,3802.7,3.25176199]
[1641360870117,5.13352212,3802.8,3802.7,1.40435759]
[1641360880961,5.13352212,3802.8,3802.7,3.19079518]
[1641360881962,5.13352212,3802.8,3802.7,1.40435759]
[1641360884170,5.13352212,3802.8,3802.7,0.0043576]
[1641360886816,8.101892,3802.8,3802.7,0.0043576]
[1641360893017,5.13352212,3802.8,3802.7,0.0043576]
[1641360895621,8.10184537,3802.8,3802.7,0.0043576]
[1641360896362,5.13352212,3802.8,3802.7,0.0043576]
[1641360897969,8.1018609,3802.8,3802.7,0.0043576]
[1641360900417,5.13352212,3802.8,3802.7,0.0043576]
[1641360900818,5.13352212,3802.8,3802.7,1.79160272]
[1641360901018,8.10186527,3802.8,3802.7,1.80309752]
[1641360901516,8.10186527,3802.8,3802.7,0.0043576]
[1641360901717,5.13352212,3802.8,3802.7,0.0043576]
[1641360905678,8.10172065,3802.8,3802.7,0.0043576]
[1641360906778,5.13352212,3802.8,3802.7,0.0043576]
[1641360909423,5.1404305,3802.8,3802.7,0.0043576]
[1641360910883,5.1404305,3802.8,3802.7,1.82591463]
[1641360912687,5.1404305,3802.8,3802.7,0.0043576]
[1641360917822,5.52841287,3802.8,3802.7,0.0043576]
[1641360919071,5.52841287,3802.8,3802.7,0.00581855]
[1641360923125,5.1404305,3802.8,3802.7,0.00581855]
[1641360926669,5.1404305,3802.8,3802.7,1.81017154]
[1641360927072,5.1404305,3802.8,3802.7,2.18917154]
[1641360927073,5.1136305,3802.8,3802.7,2.18917154]
[1641360927274,5.1136305,3802.8,3802.7,6.92117154]
[1641360927275,5.10274006,3802.8,3802.7,6.92117154]
[1641360927475,5.10274006,3802.8,3802.7,7.92117154]
[1641360928074,5.10274006,3802.8,3802.7,6.41681855]
[1641360928274,0.0583,3803.5,3802.8,4.2]
[1641360928574,0.00397897,3803.4,3803.2,0.65724]
[1641360928775,0.00397897,3803.4,3803.3,0.379]
[1641360928976,5.2585,3803.4,3803.3,0.379]
[1641360929616,5.2585,3803.4,3803.3,2.23359491]
[1641360929815,5.2585,3803.4,3803.3,3.64303892]
[1641360932824,5.28918188,3803.4,3803.3,3.64303892]
[1641360934268,5.28918188,3803.4,3803.3,1.79419341]
[1641360935573,5.2994478,3803.4,3803.3,1.79419341]
[1641360936772,5.2994478,3803.4,3803.3,0.3847494]
[1641360936972,5.2994478,3803.4,3803.3,0.0057494]
[1641360938323,8.2679744,3803.4,3803.3,0.0057494]
[1641360939322,4.05,3803.3,3802.0,0.0559]
[1641360939523,4.05,3803.3,3802.0,0.71351]
[1641360939722,0.03118022,3802.7,3802.1,0.00341054]
[1641360939922,2.66305456,3802.9,3802.1,0.00341054]
[1641360940325,2.66305456,3802.9,3802.1,0.0086026]
[1641360940524,5.2585,3802.8,3802.1,0.0086026]
[1641360940730,1.35235025,3802.6,3802.2,0.66042211]
[1641360940965,5.2585,3802.5,3802.2,0.66042211]
[1641360941163,5.2585,3802.5,3802.3,0.00227369]
[1641360941764,5.2585,3802.5,3802.2,0.00284211]
[1641360942871,5.9160702,3802.5,3802.2,0.00284211]
[1641360943275,5.9160702,3802.5,3802.2,0.66042211]
[1641360943672,5.9160702,3802.5,3802.3,0.00227369]
[1641360945519,5.9467598,3802.5,3802.3,0.00227369]
[1641360946119,0.00355036,3802.4,3802.3,0.00227369]
[1641360946321,5.26205036,3802.4,3802.3,0.00227369]
[1641360946825,5.26205036,3802.4,3802.1,0.00519206]
[1641360946826,3.807686,3802.3,3802.1,0.00519206]
[1641360947021,1.35204679,3802.3,3802.1,0.00519206]
[1641360947226,5.2585,3802.2,3802.1,0.00519206]
[1641360947628,5.2585,3802.2,3802.1,0.00632891]
[1641360948471,8.22751288,3802.2,3802.1,0.00632891]
[1641360950779,8.22751288,3802.2,3802.1,0.00277855]
[1641360953424,8.23778203,3802.2,3802.1,0.00277855]
[1641360958281,8.26848118,3802.2,3802.1,0.00277855]
[1641360960123,9.59663105,3802.2,3802.1,0.00277855]
[1641360961026,6.62761817,3802.2,3802.1,0.00277855]
[1641360961226,7.27713893,3802.2,3802.1,0.00277855]
[1641360961925,7.27713893,3802.2,3802.1,0.00599124]
[1641360964970,7.237891,3802.2,3802.1,0.00599124]
[1641360965270,5.2994683,3802.2,3802.1,0.00599124]
[1641360965470,7.23812365,3802.2,3802.1,0.00599124]
[1641360971967,7.24167375,3802.2,3802.1,0.00599124]
[1641360973374,10.21117374,3802.2,3802.1,0.00599124]
[1641360976422,11.53669109,3802.2,3802.1,0.00599124]
[1641360976822,10.21117374,3802.2,3802.1,0.00599124]
[1641360977629,10.21117374,3802.2,3802.1,0.00485439]
[1641360978669,11.53598586,3802.2,3802.1,0.00485439]
[1641360979274,11.54083862,3802.2,3802.1,0.00485439]
[1641360980873,9.60218327,3802.2,3802.1,0.00485439]
[1641360984124,8.27737115,3802.2,3802.1,0.00485439]
[1641360985626,9.60177713,3802.2,3802.1,0.00485439]
[1641360986075,8.27737115,3802.2,3802.1,0.00485439]
[1641360987380,9.60266808,3802.2,3802.1,0.00485439]
[1641360988983,8.27737115,3802.2,3802.1,0.00485439]
[1641360990824,9.60323375,3802.2,3802.1,0.00485439]
[1641360999124,8.27737115,3802.2,3802.1,0.00485439]
[1641361003978,8.27737115,3802.2,3800.9,2.52192]
[1641361003979,3.85,3802.1,3800.9,1.2065]
[1641361004182,7.87914703,3802.0,3800.9,1.2065]
[1641361004378,0.03221659,3801.6,3801.0,0.0073895]
[1641361004621,5.2585,3801.5,3801.0,1.3229395]
[1641361004817,7.18505525,3801.5,3801.0,1.3229395]
[1641361005017,5.27363677,3801.5,3801.1,0.00682108]
[1641361005222,7.18853472,3801.5,3801.1,0.00682108]